Cogmind - Beta 16.1 @@@ ROGUE MODE // 2026.02.04 @ 18:41:07 Player: BlobtheGreat Result: Destroyed by 7B-WPH(R) with Subdweller Machine Gun Performance ------------- Evolutions (0) 0 Regions Visited (2) 400 Robots Destroyed (14) 70 Value Destroyed (171) 171 Prototype IDs (0) 0 Alien Tech Used (0) 0 Bonus (0) 0 TOTAL SCORE: 641 Bonus ------- None Cogmind --------- Core Integrity 0/250 Matter 280/300 Energy 250/250 System Corruption 0% Temperature Cool (9) Movement Treading (240) Ox1 Location -10/Subcaves Parts ------- > --- POWER (1) -------- Ion Engine > --- PROPULSION (2) --- Light Treads > --- UTILITY (2) ------ Large Storage Unit Seismic Detector > --- WEAPON (2) ------- Medium Laser > --- INVENTORY (15) --- Ion Engine Light Treads Light Treads Aluminum Leg Aluminum Leg Small Storage Unit High-capacity Matter Pod (200) Seismic Detector Small Laser Botcube Peak State ------------ > --- POWER ------------ Ion Engine > --- PROPULSION ------- Light Treads Light Treads > --- UTILITY ---------- Small Storage Unit Seismic Detector > --- WEAPON ----------- Medium Laser Assault Rifle > --- INVENTORY -------- Ion Engine Aluminum Leg Aluminum Leg Small Laser Botcube [Rating: 8] Favorites ----------- Power Ion Engine Engine Ion Engine Propulsion Light Treads Treads Light Treads Utility Seismic Detector Device Seismic Detector Storage Large Storage Unit Weapon Assault Rifle Energy Gun Medium Laser Ballistic Gun Assault Rifle Build | -11 -10 -10 ------- Run | Yrd Mat Sub Slots Evolved . | . . . Power . | . . . Propulsion . | . . . Utility . | . . . Weapon . | . . . Parts Attached 8 | 7 1 . Power 1 | 1 . . Engine 1 | 1 . . Core . | . . . Reactor . | . . . Propulsion 2 | 2 . . Treads 2 | 2 . . Leg . | . . . Wheel . | . . . Hover . | . . . Flight . | . . . Utility 3 | 2 1 . Device 1 | 1 . . Storage 2 | 1 1 . Processor . | . . . Hackware . | . . . Protection . | . . . Artifact . | . . . Weapon 2 | 2 . . Energy Gun 1 | 1 . . Energy Cannon . | . . . Ballistic Gun 1 | 1 . . Ballistic Cannon . | . . . Launcher . | . . . Special Weapon . | . . . Impact Weapon . | . . . Slashing Weapon . | . . . Piercing Weapon . | . . . Special Melee Weapon . | . . . Unidentified Prototypes . | . . . Parts Lost 2 | . . 2 Power . | . . . Propulsion 1 | . . 1 Utility . | . . . Weapon 1 | . . 1 Highest Loss Streak 2 | . . 2 To Critical Strikes 1 | . . 1 Average Backups 6 | 2 6 9 Power . | . 1 1 Propulsion 2 | 1 2 4 Utility 2 | . 2 3 Weapon . | . 1 1 Tool/Special . | . . . Unused Backups 8 | . . 8 Power 1 | . . 1 Propulsion 4 | . . 4 Utility 2 | . . 2 Weapon 1 | . . 1 Tool/Special . | . . . Average Slot Usage (%) 99 | . 100 98 Engine 14 | . 14 14 Treads 27 | . 28 26 Device 14 | . 14 14 Storage 14 | . 14 14 Energy Gun 14 | . 14 14 Ballistic Gun 14 | . 14 14 Peak Build Rating 8 | 8 8 8 Average Rating 7 | 6 8 7 On Entrance 5 | . 8 8 Avg Prop Armor Cover (%) . | . . . Naked Turns . | . . . Heaviest Build 30 | 15 30 30 Greatest Support 40 | 40 40 40 Greatest Overweight (x) . | . . . Average Overweight (x) . | . . . Largest Inventory Capacity 15 | 8 15 15 Average Capacity 12 | 7 12 15 Most Carried 10 | 6 10 10 Average Carried 7 | 3 7 10 Final Capacity 15 | 8 15 15 Final Carried 10 | 6 10 10 Class Distribution -------------------- 100% | Mutant Dominant Class ---------------- Mutant | -10/Materials Mutant | -10/Subcaves Resources | -11 -10 -10 ----------- Run | Yrd Mat Sub Matter Collected 539 | 297 134 108 Remotely . | . . . Salvage Created 359 | 121 189 49 Parts 31 | 12 15 4 Haulers Intercepted 2 | . 2 . Recyclers Shooed 1 | 1 . . Parts Field Recycled . | . . . Retrieved Matter . | . . . Parts Self-Destructed 3 | . . 3 Prevented . | . . . Parts Restored . | . . . Kills | -11 -10 -10 ------- Run | Yrd Mat Sub Combat Hostiles Destroyed 8 | . 6 2 Guns 8 | . 6 2 Classes Destroyed 5 | 2 2 1 Tunneler 3 | 3 . . Hauler 2 | . 2 . Recycler 1 | 1 . . Swarmer 6 | . 6 . Subdweller 2 | . . 2 Best Kill Streak 6 | 4 6 2 Combat Bots Only 6 | . 6 2 Max Kills in Single Turn 2 | 1 2 1 Gunslinging . | . . . Exploded . | . . . Melee . | . . . Uniques/NPCs Destroyed . | . . . Combat | -11 -10 -10 -------- Run | Yrd Mat Sub Hostile Shots Fired 40 | . 23 17 Missed 8 | . 2 6 Hits 32 | . 21 11 Projectile 32 | . 21 11 AOE 5 | . . 5 Critical Strikes 1 | . . 1 Damage Taken 651 | . 168 483 Core 270 | . 33 237 Absorbed by Shields . | . . . Core Remaining (%) 100 | 100 . . Volleys Fired 35 | 9 15 11 Largest 2 | 2 2 2 Hottest 70 | 70 70 70 Shots Fired 69 | 18 30 21 Gun 69 | 18 30 21 Cannon . | . . . Launcher . | . . . Special . | . . . Kinetic 34 | 9 15 10 Thermal 35 | 9 15 11 Explosive . | . . . Electromagnetic . | . . . Robot Hit Streak 15 | 4 9 15 Robot Miss Streak 3 | 1 3 1 Penetration Max . | . . . Secondary Targets . | . . . Shots Hit Robots 47 | 12 16 19 Core Hits 18 | 5 8 5 Critical Kills . | . . . Critical Parts Destroyed . | . . . Critical Strikes 1 | . . 1 Burn 1 | . . 1 Melee Attacks . | . . . Impact . | . . . Slashing . | . . . Piercing . | . . . Sneak Attacks . | . . . Combat Hostiles . | . . . Follow-up Attacks . | . . . Damage Inflicted 625 | 154 236 235 Guns 610 | 154 221 235 Cannons . | . . . Explosions . | . . . Melee . | . . . Ramming 15 | . 15 . Kinetic 283 | 55 106 122 Thermal 327 | 99 115 113 Explosive . | . . . Electromagnetic . | . . . Impact . | . . . Slashing . | . . . Piercing . | . . . Highest Corruption . | . . . Average Corruption . | . . . Corruption Purged . | . . . Corruption Blocked . | . . . Overload Shots . | . . . Overflow Damage . | . . . Projectiles . | . . . Explosions . | . . . Melee . | . . . Knockbacks . | . . . Impact . | . . . Kinetic . | . . . Secondary . | . . . Self-Inflicted Damage . | . . . Shots . | . . . Rammed 4 | . 4 . Targets Rammed 4 | . 4 . Kicked . | . . . Crushed . | . . . Highest Temperature 99 | 81 99 . Average Temperature 40 | 41 39 . Received Heat Transfer 36 | . . 36 Siege Activations . | . . . Martial Activations . | . . . Shielding Activations . | . . . Robots Disrupted . | . . . Combat Hostiles . | . . . Robots Corrupted . | . . . Combat Hostiles . | . . . Parts Fried . | . . . Impact Corruptions . | . . . Robots Melted . | . . . Combat Hostiles . | . . . Parts Melted 1 | . 1 . Heat Transferred 1036 | 296 333 407 Parts Sabotaged . | . . . Parts Stolen . | . . . Parts Stripped . | . . . Power Chain Reactions . | . . . Alert | -11 -10 -10 ------- Run | Yrd Mat Sub Maximum Alert Level . | . . . Low Security (%) 100 | 100 100 . Level 1 . | . . . Level 2 . | . . . Level 3 . | . . . Level 4 . | . . . Level 5 . | . . . High Security . | . . . Max Security . | . . . Peak Influence 131 | 10 131 . Initial . | . . . Average 26 | 1 31 . Influence Increases 180 | 20 160 . Destroy 0b10 Robot/C 120 | . 120 . Destroy 0b10 Robot/NC 30 | 20 10 . Destroy Leader 24 | . 24 . Successful Hack 5 | . 5 . Destroy Structure 1 | . 1 . Influence Decreases 180 | 20 160 . Time Decay 180 | 20 160 . Squads Dispatched . | . . . Investigation . | . . . Extermination . | . . . Reinforcement . | . . . Assault . | . . . Garrison . | . . . Intercept . | . . . Searches Triggered . | . . . Construction Impeded . | . . . Haulers Reinforced . | . . . Active Scanning Responses . | . . . Cargo Convoy Interrupts . | . . . Stealth | -11 -10 -10 --------- Run | Yrd Mat Sub Distress Signals . | . . . Communications Jammed . | . . . Distress Signals . | . . . Times Spotted 17 | . 10 7 Peak Tracking Total 6 | . 6 3 Tactical Retreats . | . . . Traps | -11 -10 -10 ------- Run | Yrd Mat Sub Traps Triggered . | . . . Indirectly . | . . . Trap Hack Attempts . | . . . Triggered . | . . . Disarmed . | . . . Reprogrammed . | . . . Reused . | . . . Traps Extracted . | . . . Installed . | . . . Triggered . | . . . Machines | -11 -10 -10 ---------- Run | Yrd Mat Sub Machines Disabled . | . . . Max in Single Turn . | . . . Machines Repaired . | . . . Machines Dismantled . | . . . Machines Sabotaged . | . . . Overloaded Fab Kills . | . . . Hacking | -11 -10 -10 --------- Run | Yrd Mat Sub Machines Accessed 2 | . 2 . Terminals 2 | . 2 . Fabricators . | . . . Repair Stations . | . . . Recycling Units . | . . . Scanalyzers . | . . . Garrison Access . | . . . Total Hacks 4 | . 4 . Successful 2 | . 2 . Failed 2 | . 2 . Catastrophic . | . . . Database Lockouts . | . . . Manual 4 | . 4 . Terminals 4 | . 4 . Fabricators . | . . . Repair Stations . | . . . Recycling Units . | . . . Scanalyzers . | . . . Garrison Access . | . . . Terminal Hacks 2 | . 2 . Hauler Manifests 1 | . 1 . Zone Layout 1 | . 1 . Fabricator Hacks . | . . . Repair Station Hacks . | . . . Recycling Unit Hacks . | . . . Scanalyzer . | . . . Garrison Access Hacks . | . . . Unauthorized Hacks . | . . . Terminals . | . . . Fabricators . | . . . Repair Stations . | . . . Recycling Units . | . . . Scanalyzers . | . . . Garrison Access . | . . . Data Cores Recovered . | . . . Used . | . . . Hacking Detections 2 | . 2 . Full Trace Events . | . . . Feedback Events . | . . . Feedback Blocked . | . . . Robot Schematics Acquired . | . . . Robots Built . | . . . Authchips . | . . . Time . | . . . Total Robot Build Rating . | . . . Part Schematics Acquired . | . . . Parts Built . | . . . Authchips . | . . . Time . | . . . Total Part Build Rating . | . . . Part Studies Acquired . | . . . Parts Repaired . | . . . Time . | . . . Parts Recycled . | . . . Recycled Matter . | . . . Retrieved Matter . | . . . Retrieved Components . | . . . Parts Scanalyzed . | . . . Part Schematics Acquired . | . . . Parts Damaged . | . . . Bothacking | -11 -10 -10 ------------ Run | Yrd Mat Sub Used RIF Installer . | . . . Robots Hacked . | . . . Non-combat . | . . . Combat . | . . . Robot Hacks Applied . | . . . Relay Couplers Released . | . . . Fabnet Peak Effective % . | . . . Robots Rewired . | . . . Allies Hacked . | . . . Hacks Repelled . | . . . Allies | -11 -10 -10 -------- Run | Yrd Mat Sub Total Allies . | . . . Largest Group . | . . . Highest-Rated Group . | . . . Highest-Rated Ally . | . . . Total Orders . | . . . Ally Attacks . | . . . Total Damage . | . . . Kills . | . . . Allies Corrupted . | . . . Allies Melted . | . . . Intel | -11 -10 -10 ------- Run | Yrd Mat Sub Active Infowar (turns) 910 | 36 634 240 Seismic 910 | 36 634 240 Robot Analysis Total . | . . . Derelict Logs Recovered . | . . . Drone Launches . | . . . Drone Recoveries . | . . . Exploration | -11 -10 -10 ------------- Run | Yrd Mat Sub Turns Passed 1006 | 132 634 240 Spaces Moved 552 | 60 362 130 Core 5 | 5 . . Treads 547 | 55 362 130 Legs . | . . . Wheels . | . . . Hover . | . . . Flight . | . . . Fastest Speed 50 | 50 160 160 Average Speed 159 | 150 160 160 Slowest Speed 160 | 160 160 160 Overloaded Moves . | . . . Propulsion Burnouts . | . . . Robots Hopped . | . . . Potential Cave-ins . | . . . Cave-ins Triggered . | . . . Exploration Rate (%) 33 | 4 76 19 Regions Visited 2 Branch Regions 1 Pre-discovered Areas 1 | . . 1 Known Exits Taken . | . . . Unknown Exits Taken 2 | 1 1 . Scrap Searched . | . . . Spaces Dug . | . . . Terrain Destroyed . | . . . Melee . | . . . Projectile . | . . . AOE . | . . . Terrain Rammed . | . . . Walls Destroyed . | . . . Machines Disabled . | . . . Actions | -11 -10 -10 --------- Run | Yrd Mat Sub Total 605 | 80 384 141 Wait . | . . . Move 550 | 59 361 130 Hop . | . . . Pick Up 8 | 5 3 . Fast Attach 7 | 7 . . Attach . | . . . Detach . | . . . Swap 1 | . 1 . Drop . | . . . Fire 35 | 9 15 11 Melee . | . . . Ram . | . . . Kick . | . . . Crush 4 | . 4 . Escape Stasis . | . . . Rewire . | . . . Trap . | . . . Miscellaneous . | . . . Route ------- -11/Scrapyard -10/Materials (discovered 4 exits: [*Mat x2] / [*Min] / [*Sub]) -10/Subcaves (discovered 1 exit: [*Mat]) History --------- Turn | Location | Event 5 | -11/Scrapyard | Discovered new exit (range 15) 133 | -11/Scrapyard | Entered Materials 134 | -10/Materials | Met a group of wandering Federalists 258 | -10/Materials | Discovered new exit (range 5) 274 | -10/Materials | Lost 3 allies 305 | -10/Materials | Build established: Mutant 358 | -10/Materials | Discovered new exit (range 7) 599 | -10/Materials | Discovered new exit (range 12) 663 | -10/Materials | Discovered new exit (range 15) 767 | -10/Materials | Entered Subcaves 768 | -10/Subcaves | Continued accompanying wandering Federalists (2) 768 | -10/Subcaves | Approached by a straggling Scientist 773 | -10/Subcaves | A swath of the cavern ceiling suddenly collapsed 778 | -10/Subcaves | A swath of the cavern ceiling suddenly collapsed 830 | -10/Subcaves | Learned location of Zion (-6) 830 | -10/Subcaves | Met a Zionite searching for "candidates" 921 | -10/Subcaves | Discovered new exit (range 9) 967 | -10/Subcaves | A Subdweller sparked back to life 967 | -10/Subcaves | A Subdweller sparked back to life 989 | -10/Subcaves | Core integrity fell below 50% 994 | -10/Subcaves | Core integrity fell below 20% 1007 | -10/Subcaves | Destroyed by 7B-WPH(R) with Subdweller Machine Gun Last Messages --------------- 00975_ E3-03Y(g) destroyed. 00978_ 7A-F1J(R) affixes Scrap Shield Fragment to Scrap Shield. 00979_ D6-LIA(R) destroyed. 00979_ 7A-F1J(R) destroyed. 00982_ WN-8PH(c) destroyed. 00982_ OQ-INB(g) destroyed. 00984_ E5-TND(g) destroyed. 00984_ Critical hit (Destroy). 00984_ Lgt. Treads destroyed. 00992_ XS-WJQ(R) affixes Scrap Shield Fragment to Scrap Shield. 00993_ 1U-2G5(R) destroyed. 00996_ XS-WJQ(R) affixes Scrap Shield Fragment to Scrap Shield. 00999_ XS-WJQ(R) suffers critical hit (Burn). 01002_ XS-WJQ(R) affixes Scrap Shield Fragment to Scrap Shield. 01004_ Assault Rifle destroyed. 01005_ XS-WJQ(R) destroyed. Map ----- +----------------------------------------------------+ | | | | | | | | | | | | | | | | | ?????????????????????????????????????????????????? | | ?????????????????????????????????????????????????? | | ?????????????????????????????????????????????????? | | ?????????????????????????????????????????????????? | | ?????????????????????????????????????????????????? | | ?????????????????????????????????????????????????? | | ?????????????????????????????????????????????????? | | ?????????????????????????????????????????????????? | | ?????????????????????????????????????????????????? | | ?????????????????????????????????????????????????? | | ?????????????????????????????????????????????????? | | ??????????????????????#######???????" ???????????? | | ????????????????????### ###??? " ???????????? | | ????????????????????# #?? "?#??????????? | | ???????????????????## #?# ???????????? | | ?????????????????# # ##<*< < #????????? | | ?????????????????##; &%%[%& #????????? | | ????????????????## @ !!& = ????????? | | ????????????""" #????? #??????? | | ??????????? " ######???? ##?????? | | ??????????" ! #????????? ####??? | | ??????????"=%* ; = #????????? # # | | ??????????""## ###; ##?###????# | | ?????????????## #?## R;### #????# | | ??????????????# #??# R #???? # | | ??????????????# ??# ##??? # # | | ??????????????##???#### ##### #? | | ??????????????????????## ####### ## #?? | | ???????????????????????####?????### #?? | | ??????????????????????????????????# #??? | | ??????????????????????????????????# ###??? | | ??????????????????????????????????### ###??? | | ????????????????????????????????????## ##?? | | ?????????????????????????????????????# #?? | | ????????????????????????????????????## #?? | | ????????????????????????????????????# #?? | | ???????????????????????????????????## ##?? | | ???????????????????????????????????#" ##### | | ????????????????????????????????# # # # | | ????????????????????????????????# # | | ????????????????????????????????# # # | | ???????????????????????????????#" ###" ## # | +----------------------------------------------------+ Best States ------------- Heat Dissipation 25 Energy Generation 10 Energy Capacity 250 Matter Stores 300 Matter Capacity 300 Sight Range 16 Terrain Scan Density 10 Evasion (%) 40 Recoil Reduction 2 Item Schematics ----------------- None Robot Schematics ------------------ None Fabricated ------------ Nothing Repaired ---------- Nothing Studied --------- None Alien Tech Used ----------------- None Achievements -------------- None Challenges ------------ None Game ------ Seed ActuatorSmallPlatform Manual? 0 Play Time 00:05:25 Cumulative 263.7 hours Start 2026.02.04 @ 18:35:35 End 2026.02.04 @ 18:41:07 Sessions 1 Manual Loads 0 Difficulty Rogue Special Mode None Game No. 263 Rogue 263 Adventurer 0 Explorer 0 Win Type - Total 13 Types 9/1/2/0/0/0/0/0/0/1 Lore% 88 Gallery% 80 Achievement% 63 Wizard Run 0 Options --------- Layout 1 ASCII 0 Keyboard 1 Movement Arrows Keybinds 0 Fullscreen 1 Font 24/Smallcaps Map View 50x40 Zoom Use 0% Tactical HUD 1 Map Filters NONE Filters NONE Steam 1 RUN: eb69a048-fb56-4b6b-aaa8-e5d3484fa7cd